fUSD/lending_fUSD_20240524
["ID","MTS","AMOUNT","RATE_DAILY","PERIOD"]
[327831753,1716528643102,-156.90306799,0.00033524,7]
[327831754,1716528643111,-150.0,0.00033532,2]
[327831755,1716528643122,-150.0,0.00033558,2]
[327831756,1716528643132,-150.0,0.0003358,2]
[327831757,1716528643141,-165.75363187,0.00033582,10]
[327831758,1716528643150,-155.06938859,0.00033598,2]
[327831759,1716528643161,-150.0,0.000336,7]
[327831760,1716528643171,-150.0,0.000336,7]
[327831761,1716528643181,-150.0,0.000336,7]
[327831762,1716528643190,-150.0,0.00033618,2]
[327831763,1716528643200,-150.0,0.0003362,2]
[327831764,1716528643210,-154.58292111,0.00033659,7]
[327831765,1716528643219,-150.0,0.00033671,2]
[327831768,1716528643229,-543.877595,0.00033687,2]
[327831770,1716528643238,-155.13054822,0.00033696,4]
[327831772,1716528643248,-1967.47758805,0.00033697,2]
[327831774,1716528643258,-19041.69759802,0.00033698,15]
[327831776,1716528643268,-198.3990252,0.00033698,4]
[327831778,1716528643277,-522.91684344,0.00033698,6]
[327831780,1716528643287,-500.0,0.00033698,6]
[327831781,1716528643296,-500.0,0.00033698,6]
[327831782,1716528643305,-502.92837908,0.00033698,6]
[327831783,1716528643315,-345.9717401,0.00033698,6]
[327831784,1716528643324,-500.0,0.00033698,6]
[327831785,1716528643334,-577.99792573,0.00033698,6]
[327831786,1716528643343,-419.94027421,0.00033698,6]
[327831787,1716528643353,-500.0,0.00033698,6]
[327831788,1716528643363,-521.91484172,0.00033698,6]
[327831789,1716528643375,-571.78806718,0.00033698,6]
[327831790,1716528643384,-500.0,0.00033698,6]
[327831791,1716528643394,-245.92716077,0.00033698,6]
[327831792,1716528643403,-500.0,0.00033698,6]
[327831793,1716528643412,-514.49850334,0.00033698,6]
[327831794,1716528643421,-241.85962503,0.00033698,6]
[327831795,1716528643431,-419.69756102,0.00033698,6]
[327831796,1716528643440,-514.99597149,0.00033698,6]
[327831797,1716528643449,-500.0,0.00033698,6]
[327831798,1716528643459,-513.75012247,0.00033698,6]
[327831799,1716528643468,-538.31456923,0.00033698,6]
[327831800,1716528643478,-155.48078126,0.00033698,6]
[327831801,1716528643487,-525.6945802,0.00033698,6]
[327831802,1716528643496,-512.46236839,0.00033698,6]
[327831803,1716528643506,-519.31254478,0.00033698,6]
[327831804,1716528643515,-523.55130093,0.00033698,6]
[327831805,1716528643524,-563.42252512,0.00033698,6]
[327831806,1716528643533,-519.21630025,0.00033698,6]
[327831807,1716528643543,-500.0,0.00033698,6]
[327831808,1716528643552,-500.0,0.00033698,6]
[327831809,1716528643562,-500.0,0.00033698,6]
[327831810,1716528643571,-500.0,0.00033698,6]
[327831811,1716528643580,-500.0,0.00033698,6]
[327831812,1716528643590,-500.0,0.00033698,6]
[327831813,1716528643599,-539.22432016,0.00033698,6]
[327831814,1716528643609,-500.0,0.00033698,6]
[327831815,1716528643618,-500.0,0.00033698,6]
[327831816,1716528643630,-500.0,0.00033698,6]
[327831817,1716528643640,-500.0,0.00033698,6]
[327831818,1716528643650,-500.0,0.00033698,6]
[327831819,1716528643660,-500.0,0.00033698,6]
[327831820,1716528643670,-646.7264838,0.00033698,6]
[327831821,1716528643679,-500.0,0.00033698,6]
[327831822,1716528643688,-374.82629822,0.00033698,6]
[327831823,1716528643698,-500.0,0.00033698,6]
[327831824,1716528643708,-500.0,0.00033698,6]
[327831825,1716528643717,-276.87029633,0.00033698,6]
[327831826,1716528643727,-500.0,0.00033698,6]
[327831827,1716528643737,-500.0,0.00033698,6]
[327831828,1716528643747,-626.6825221,0.00033698,6]
[327831829,1716528643757,-500.0,0.00033698,6]
[327831830,1716528643767,-500.0,0.00033698,6]
[327831831,1716528643777,-500.0,0.00033698,6]
[327831832,1716528643787,-338.46395812,0.00033698,6]
[327831833,1716528643797,-500.0,0.00033698,6]
[327831834,1716528643808,-500.0,0.00033698,6]
[327831835,1716528643818,-500.0,0.00033698,6]
[327831836,1716528643828,-500.0,0.00033698,6]
[327831837,1716528643837,-500.0,0.00033698,6]
[327831838,1716528643847,-240.30034033,0.00033698,6]
[327831839,1716528643856,-516.8911266,0.00033698,6]
[327831840,1716528643866,-526.9968401,0.00033698,6]
[327831841,1716528643877,-320.13784188,0.00033698,6]
[327831842,1716528643887,-500.0,0.00033698,6]
[327831843,1716528643897,-215.32679162,0.00033698,6]
[327831844,1716528643907,-500.0,0.00033698,6]
[327831845,1716528643917,-500.0,0.00033698,6]
[327831846,1716528643927,-384.86426212,0.00033698,6]
[327831847,1716528643937,-500.0,0.00033698,6]
[327831848,1716528643948,-401.60986615,0.00033698,6]
[327831849,1716528643965,-523.58856896,0.00033698,6]
[327831850,1716528643975,-522.10697215,0.00033698,6]
[327831851,1716528643986,-511.03556274,0.00033698,6]
[327831852,1716528643998,-558.12432352,0.00033698,6]
[327831853,1716528644008,-500.0,0.00033698,6]
[327831854,1716528644018,-586.33620586,0.00033698,6]
[327831855,1716528644028,-500.0,0.00033698,6]
[327831856,1716528644038,-500.0,0.00033698,6]
[327831857,1716528644051,-527.21800435,0.00033698,6]
[327831858,1716528644060,-500.0,0.00033698,6]
[327831859,1716528644070,-500.0,0.00033698,6]
[327831860,1716528644080,-500.0,0.00033698,6]
[327831861,1716528644090,-569.20726509,0.00033698,6]
[327831862,1716528644100,-500.0,0.00033698,6]
[327831863,1716528644110,-500.0,0.00033698,6]
[327831864,1716528644119,-502.00089025,0.00033698,6]
[327831865,1716528644129,-500.0,0.00033698,6]
[327831866,1716528644141,-500.0,0.00033698,6]
[327831867,1716528644151,-500.0,0.00033698,6]
[327831868,1716528644161,-211.29889773,0.00033698,6]
[327831869,1716528644172,-500.0,0.00033698,6]
[327831870,1716528644182,-500.0,0.00033698,6]
[327831871,1716528644193,-500.0,0.00033698,6]
[327831872,1716528644203,-307.84379918,0.00033698,6]
[327831873,1716528644213,-500.0,0.00033698,6]
[327831874,1716528644223,-522.0601606,0.00033698,6]
[327831875,1716528644234,-533.48592571,0.00033698,6]
[327831876,1716528644244,-523.14565059,0.00033698,6]
[327831877,1716528644255,-500.0,0.00033698,6]
[327831878,1716528644265,-500.0,0.00033698,6]
[327831879,1716528644275,-215.06005827,0.00033698,6]
[327831880,1716528644286,-523.31410425,0.00033698,6]
[327831881,1716528644297,-523.27832837,0.00033698,6]
[327831882,1716528644308,-500.0,0.00033698,6]
[327831883,1716528644318,-500.0,0.00033698,6]
[327831884,1716528644329,-500.0,0.00033698,6]
[327831885,1716528644340,-530.32644744,0.00033698,6]
[327831886,1716528644350,-156.3739567,0.00033698,6]
[327831887,1716528644361,-536.14206789,0.00033698,6]
[327831888,1716528644372,-521.24016632,0.00033698,6]
[327831889,1716528644383,-500.0,0.00033698,6]
[327831890,1716528644393,-500.0,0.00033698,6]
[327831891,1716528644404,-500.0,0.00033698,6]
[327831892,1716528644415,-629.8437576,0.00033698,6]
[327831893,1716528644425,-531.26920873,0.00033698,6]
[327831894,1716528644435,-525.09518158,0.00033698,6]
[327831895,1716528644445,-500.0,0.00033698,6]
[327831896,1716528644455,-531.91664705,0.00033698,6]
[327831897,1716528644466,-367.4241711,0.00033698,6]
[327831898,1716528644476,-500.0,0.00033698,6]
[327831899,1716528644486,-500.0,0.00033698,6]
[327831900,1716528644497,-500.0,0.00033698,6]
[327831901,1716528644507,-500.0,0.00033698,6]
[327831902,1716528644517,-500.0,0.00033698,6]
[327831903,1716528644528,-500.0,0.00033698,6]
[327831904,1716528644538,-500.0,0.00033698,6]
[327831905,1716528644549,-500.0,0.00033698,6]
[327831906,1716528644559,-501.04334774,0.00033698,6]
[327831907,1716528644570,-539.79362906,0.00033698,6]
[327831908,1716528644581,-509.99011902,0.00033698,6]
[327831909,1716528644591,-500.0,0.00033698,6]
[327831911,1716528644601,-500.0,0.00033698,6]
[327831913,1716528644612,-500.0,0.00033698,6]
[327831914,1716528644623,-377.01705919,0.00033698,6]
[327831915,1716528644633,-500.0,0.00033698,6]
[327831916,1716528644643,-528.7518505,0.00033698,6]
[327831917,1716528644654,-500.0,0.00033698,6]
[327831918,1716528644665,-500.0,0.00033698,6]
[327831919,1716528644675,-221.12200637,0.00033698,6]
[327831920,1716528644685,-500.0,0.00033698,6]
[327831921,1716528644695,-541.92584311,0.00033698,6]
[327831922,1716528644705,-500.0,0.00033698,6]
[327831923,1716528644717,-500.0,0.00033698,6]
[327831925,1716528644728,-525.69077954,0.00033698,6]
[327831927,1716528644737,-500.0,0.00033698,6]
[327831929,1716528644747,-500.0,0.00033698,6]
[327831931,1716528644757,-500.0,0.00033698,6]
[327831933,1716528644767,-532.21545328,0.00033698,6]
[327831935,1716528644776,-508.13432566,0.00033698,6]
[327831936,1716528644786,-526.20585682,0.00033698,6]
[327831938,1716528644796,-510.39150212,0.00033698,6]
[327831940,1716528644806,-500.0,0.00033698,6]
[327831941,1716528644816,-500.0,0.00033698,6]
[327831943,1716528644825,-500.0,0.00033698,6]
[327831945,1716528644835,-500.0,0.00033698,6]
[327831947,1716528644844,-500.0,0.00033698,6]
[327831948,1716528644854,-500.0,0.00033698,6]
[327831950,1716528644864,-523.080302,0.00033698,6]
[327831952,1716528644876,-500.0,0.00033698,6]
[327831953,1716528644885,-509.61552972,0.00033698,6]
[327831955,1716528644897,-524.97929212,0.00033698,6]
[327831957,1716528644907,-500.0,0.00033698,6]
[327831958,1716528644917,-602.96464213,0.00033698,6]
[327831960,1716528644928,-510.24324121,0.00033698,6]
[327831962,1716528644938,-500.0,0.00033698,6]
[327831963,1716528644948,-534.31768974,0.00033698,6]
[327831965,1716528644959,-519.11955315,0.00033698,6]
[327831967,1716528644973,-500.0,0.00033698,6]
[327831969,1716528644984,-500.0,0.00033698,6]
[327831971,1716528644995,-500.0,0.00033698,6]
[327831972,1716528645006,-500.0,0.00033698,6]
[327831974,1716528645017,-500.0,0.00033698,6]
[327831976,1716528645027,-500.0,0.00033698,6]
[327831978,1716528645039,-500.0,0.00033698,6]
[327831980,1716528645050,-500.0,0.00033698,6]
[327831981,1716528645060,-500.0,0.00033698,6]
[327831983,1716528645069,-500.0,0.00033698,6]
[327831985,1716528645080,-500.0,0.00033698,6]
[327831987,1716528645090,-500.0,0.00033698,6]
[327831988,1716528645100,-533.68263895,0.00033698,6]
[327831990,1716528645111,-439.62226658,0.00033698,6]
[327831992,1716528645127,-500.0,0.00033698,6]
[327831994,1716528645138,-530.31215687,0.00033698,6]
[327831995,1716528645149,-500.0,0.00033698,6]
[327831997,1716528645159,-403.34223925,0.00033698,6]
[327831999,1716528645169,-524.97837381,0.00033698,6]
[327832000,1716528645180,-500.0,0.00033698,6]
[327832002,1716528645191,-500.0,0.00033698,6]
[327832004,1716528645202,-500.0,0.00033698,6]
[327832006,1716528645212,-500.0,0.00033698,6]
[327832008,1716528645222,-305.1194856,0.00033698,6]
[327832010,1716528645234,-500.0,0.00033698,6]
[327832011,1716528645244,-500.0,0.00033698,6]
[327832013,1716528645255,-626.86740693,0.00033698,6]
[327832015,1716528645266,-545.05175757,0.00033698,6]
[327832017,1716528645276,-500.0,0.00033698,6]
[327832019,1716528645286,-500.0,0.00033698,6]
[327832020,1716528645295,-528.51970312,0.00033698,6]
[327832022,1716528645305,-500.0,0.00033698,6]
[327832024,1716528645316,-641.25238137,0.00033698,6]
[327832026,1716528645326,-646.85408167,0.00033698,6]
[327832028,1716528645336,-500.0,0.00033698,6]
[327832030,1716528645345,-500.0,0.00033698,6]
[327832031,1716528645355,-500.0,0.00033698,6]
[327832033,1716528645365,-500.0,0.00033698,6]
[327832035,1716528645378,-500.0,0.00033698,6]
[327832037,1716528645387,-500.0,0.00033698,6]
[327832038,1716528645397,-500.0,0.00033698,6]
[327832039,1716528645407,-500.0,0.00033698,6]
[327832040,1716528645453,-500.0,0.00033698,6]
[327832041,1716528645463,-635.5314038,0.00033698,6]
[327832042,1716528645472,-500.0,0.00033698,6]
[327832043,1716528645482,-500.0,0.00033698,6]
[327832044,1716528645491,-500.0,0.00033698,6]
[327832045,1716528645500,-500.0,0.00033698,6]
[327832046,1716528645509,-500.0,0.00033698,6]
[327832047,1716528645518,-500.0,0.00033698,6]
[327832048,1716528645528,-500.0,0.00033698,6]
[327832049,1716528645537,-530.82237791,0.00033698,6]
[327832050,1716528645547,-500.0,0.00033698,6]
[327832051,1716528645556,-500.0,0.00033698,6]
[327832052,1716528645565,-500.0,0.00033698,6]
[327832053,1716528645575,-500.0,0.00033698,6]
[327832054,1716528645584,-500.0,0.00033698,6]
[327832055,1716528645593,-536.58994588,0.00033698,6]
[327832056,1716528645602,-500.0,0.00033698,6]
[327832057,1716528645611,-500.0,0.00033698,6]
[327832058,1716528645620,-500.0,0.00033698,6]
[327832059,1716528645632,-553.02106872,0.00033698,6]
[327832060,1716528645640,-500.0,0.00033698,6]
[327832061,1716528645649,-500.0,0.00033698,6]
[327832062,1716528645659,-500.0,0.00033698,6]
[327832063,1716528645667,-500.0,0.00033698,6]
[327832064,1716528645676,-500.0,0.00033698,6]
[327832065,1716528645686,-500.0,0.00033698,6]
[327832066,1716528645695,-373.83802965,0.00033698,6]
[327832067,1716528645704,-488.18945735,0.00033698,6]
[327832068,1716528645713,-522.73952823,0.00033698,6]
[327832069,1716528645722,-568.20091765,0.00033698,6]
[327832070,1716528645732,-305.82579272,0.00033698,6]
[327832071,1716528645741,-531.95747792,0.00033698,6]
[327832072,1716528645750,-528.93485181,0.00033698,6]
[327832073,1716528645760,-500.0,0.00033698,6]
[327832074,1716528645770,-522.3166994,0.00033698,6]
[327832075,1716528645779,-500.0,0.00033698,6]
[327832076,1716528645788,-515.94904177,0.00033698,6]
[327832077,1716528645798,-500.0,0.00033698,2]
[327832078,1716528645807,-500.0,0.00033698,2]
[327832079,1716528645816,-500.0,0.00033698,2]
[327832080,1716528645826,-500.0,0.00033698,2]
[327832081,1716528645836,-500.0,0.00033698,2]
[327832082,1716528645845,-500.0,0.00033698,2]
[327832083,1716528645854,-500.0,0.00033698,2]
[327832084,1716528645863,-500.0,0.00033698,2]
[327832085,1716528645874,-500.0,0.00033698,2]
[327832086,1716528645884,-500.0,0.00033698,2]
[327832087,1716528645893,-500.0,0.00033698,2]
[327832088,1716528645903,-500.0,0.00033698,2]
[327832089,1716528645913,-500.0,0.00033698,2]
[327832090,1716528645922,-500.0,0.00033698,2]
[327832091,1716528645931,-520.0640363,0.00033698,6]
[327832092,1716528645941,-500.0,0.00033698,2]
[327832093,1716528645950,-500.0,0.00033698,2]
[327832094,1716528645963,-217.84,0.00033698,2]
[327832095,1716528645973,-520.69129467,0.00033698,6]
[327832096,1716528645982,-500.0,0.00033698,6]
[327832097,1716528645992,-500.0,0.00033698,6]
[327832098,1716528646002,-500.0,0.00033698,6]
[327832099,1716528646011,-500.0,0.00033698,6]
[327832100,1716528646020,-500.0,0.00033698,6]
[327832101,1716528646029,-525.82962304,0.00033698,6]
[327832102,1716528646039,-500.0,0.00033698,6]
[327832103,1716528646049,-521.63177212,0.00033698,6]
[327832104,1716528646058,-500.0,0.00033698,6]
[327832105,1716528646067,-515.69830856,0.00033698,6]
[327832106,1716528646076,-500.0,0.00033698,6]
[327832107,1716528646086,-500.0,0.00033698,6]
[327832108,1716528646096,-500.0,0.00033698,6]
[327832109,1716528646107,-500.0,0.00033698,2]
[327832110,1716528646116,-548.45935373,0.00033698,2]
[327832111,1716528646127,-365.84801102,0.00033698,6]
[327832112,1716528646136,-500.0,0.00033698,6]
[327832113,1716528646145,-500.0,0.00033698,6]
[327832114,1716528646154,-430.76552592,0.00033698,6]
[327832115,1716528646163,-500.0,0.00033698,6]
[327832116,1716528646172,-522.9182244,0.00033698,6]
[327832117,1716528646181,-500.0,0.00033698,6]
[327832118,1716528646190,-489.62074736,0.00033698,6]
[327832119,1716528646199,-510.16783179,0.00033698,6]
[327832120,1716528646208,-415.48225762,0.00033698,6]
[327832121,1716528646218,-500.0,0.00033698,6]
[327832122,1716528646227,-543.82400803,0.00033698,6]
[327832123,1716528646236,-500.0,0.00033698,6]
[327832124,1716528646246,-500.0,0.00033698,6]
[327832125,1716528646255,-189.73341204,0.00033698,6]
[327832126,1716528646264,-516.81753839,0.00033698,6]
[327832127,1716528646273,-500.0,0.00033698,6]
[327832128,1716528646283,-508.86004874,0.00033698,6]
[327832129,1716528646293,-500.0,0.00033698,6]
[327832130,1716528646302,-500.0,0.00033698,6]
[327832131,1716528646312,-500.0,0.00033698,6]
[327832132,1716528646322,-500.0,0.00033698,6]
[327832133,1716528646332,-500.0,0.00033698,6]
[327832134,1716528646342,-509.42760082,0.00033698,6]
[327832135,1716528646351,-526.27009542,0.00033698,6]
[327832136,1716528646360,-500.0,0.00033698,6]
[327832137,1716528646370,-500.0,0.00033698,6]
[327832138,1716528646381,-500.0,0.00033698,6]
[327832139,1716528646390,-528.87080506,0.00033698,6]
[327832140,1716528646399,-500.0,0.00033698,6]
[327832141,1716528646408,-500.0,0.00033698,6]
[327832142,1716528646418,-500.0,0.00033698,6]
[327832143,1716528646427,-524.0075563,0.00033698,6]
[327832144,1716528646437,-500.0,0.00033698,6]
[327832145,1716528646446,-500.0,0.00033698,6]
[327832146,1716528646455,-520.83657135,0.00033698,6]
[327832147,1716528646465,-500.0,0.00033698,6]
[327832148,1716528646474,-500.0,0.00033698,6]
[327832149,1716528646483,-500.0,0.00033698,6]
[327832150,1716528646493,-500.0,0.00033698,6]
[327832151,1716528646504,-500.0,0.00033698,6]
[327832152,1716528646514,-500.0,0.00033698,6]
[327832153,1716528646523,-500.0,0.00033698,6]
[327832154,1716528646532,-480.76562125,0.00033698,6]
[327832155,1716528646542,-500.0,0.00033698,2]
[327832156,1716528646552,-500.0,0.00033698,2]
[327832157,1716528646562,-500.0,0.00033698,2]
[327832158,1716528646571,-500.0,0.00033698,2]
[327832159,1716528646581,-500.0,0.00033698,2]
[327832160,1716528646590,-500.0,0.00033698,2]
[327832161,1716528646599,-525.73402801,0.00033698,6]
[327832162,1716528646609,-500.0,0.00033698,2]
[327832163,1716528646618,-361.98370005,0.00033698,2]
[327832164,1716528646631,-500.0,0.00033698,6]
[327832165,1716528646640,-500.0,0.00033698,6]
[327832166,1716528646649,-530.11343661,0.00033698,6]
[327832167,1716528646659,-170.33311735,0.00033698,6]
[327832168,1716528646668,-516.58489432,0.00033698,6]
[327832169,1716528646677,-500.0,0.00033698,6]
[327832170,1716528646687,-500.0,0.00033698,6]
[327832171,1716528646696,-172.46318012,0.00033698,6]
[327832172,1716528646706,-500.0,0.00033698,6]
[327832173,1716528646715,-500.0,0.00033698,6]
[327832174,1716528646725,-523.02871243,0.00033698,6]
[327832175,1716528646735,-507.69993624,0.00033698,6]
[327832176,1716528646744,-500.0,0.00033698,6]
[327832177,1716528646754,-500.0,0.00033698,6]
[327832178,1716528646764,-500.0,0.00033698,6]
[327832179,1716528646774,-520.21530875,0.00033698,6]
[327832180,1716528646784,-520.0452135,0.00033698,6]
[327832181,1716528646793,-500.0,0.00033698,6]
[327832182,1716528646803,-500.0,0.00033698,6]
[327832183,1716528646814,-500.0,0.00033698,6]
[327832184,1716528646824,-500.0,0.00033698,6]
[327832185,1716528646833,-535.70296688,0.00033698,6]
[327832186,1716528646843,-500.0,0.00033698,6]
[327832187,1716528646853,-500.0,0.00033698,6]
[327832188,1716528646863,-500.0,0.00033698,6]
[327832189,1716528646874,-500.0,0.00033698,6]
[327832190,1716528646885,-570.92921247,0.00033698,6]
[327832191,1716528646894,-523.3268849,0.00033698,6]
[327832192,1716528646903,-500.0,0.00033698,6]
[327832193,1716528646915,-605.76786836,0.00033698,6]
[327832194,1716528646925,-500.0,0.00033698,6]
[327832195,1716528646934,-500.0,0.00033698,6]
[327832196,1716528646944,-500.0,0.00033698,6]
[327832197,1716528646954,-300.72818458,0.00033698,6]
[327832198,1716528646966,-513.33588238,0.00033698,6]
[327832199,1716528646976,-500.0,0.00033698,6]
[327832200,1716528646985,-500.0,0.00033698,6]
[327832201,1716528646995,-500.0,0.00033698,6]
[327832202,1716528647006,-500.0,0.00033698,6]
[327832203,1716528647016,-500.0,0.00033698,6]
[327832204,1716528647026,-274.55243291,0.00033698,6]
[327832205,1716528647036,-514.03580541,0.00033698,6]
[327832206,1716528647047,-338.13108485,0.00033698,6]
[327832207,1716528647057,-500.0,0.00033698,6]
[327832208,1716528647068,-526.95487209,0.00033698,6]
[327832209,1716528647077,-500.0,0.00033698,6]
[327832210,1716528647087,-197.98517194,0.00033698,6]
[327832211,1716528647097,-516.34259989,0.00033698,6]
[327832212,1716528647107,-529.54607233,0.00033698,6]
[327832213,1716528647117,-500.0,0.00033698,6]
[327832214,1716528647129,-521.82569677,0.00033698,6]
[327832215,1716528647138,-500.0,0.00033698,6]
[327832216,1716528647147,-431.64839017,0.00033698,6]
[327832217,1716528647157,-163.23057069,0.00033698,6]
[327832218,1716528647167,-522.74514695,0.00033698,6]
[327832219,1716528647177,-500.0,0.00033698,6]
[327832220,1716528647187,-500.0,0.00033698,6]
[327832221,1716528647198,-487.2378056,0.00033698,6]
[327832222,1716528647208,-506.05028561,0.00033698,6]
[327832223,1716528647219,-500.0,0.00033698,6]
[327832224,1716528647229,-500.0,0.00033698,6]
[327832225,1716528647240,-500.0,0.00033698,6]
[327832226,1716528647250,-500.0,0.00033698,6]
[327832227,1716528647260,-500.0,0.00033698,6]
[327832228,1716528647271,-508.30911166,0.00033698,6]
[327832229,1716528647281,-513.76663548,0.00033698,6]
[327832230,1716528647291,-500.0,0.00033698,6]
[327832231,1716528647301,-500.0,0.00033698,6]
[327832232,1716528647311,-500.0,0.00033698,6]
[327832233,1716528647321,-500.0,0.00033698,6]
[327832234,1716528647331,-500.0,0.00033698,6]
[327832235,1716528647342,-527.15735493,0.00033698,6]
[327832236,1716528647352,-555.65443186,0.00033698,6]
[327832237,1716528647362,-527.57229371,0.00033698,6]
[327832238,1716528647372,-500.0,0.00033698,6]
[327832239,1716528647384,-500.0,0.00033698,6]
[327832240,1716528647395,-500.0,0.00033698,6]
[327832241,1716528647404,-511.44178144,0.00033698,6]
[327832242,1716528647415,-500.0,0.00033698,6]
[327832243,1716528647424,-500.0,0.00033698,6]
[327832244,1716528647434,-271.03187166,0.00033698,6]
[327832245,1716528647444,-262.7293849,0.00033698,6]
[327832246,1716528647454,-500.0,0.00033698,6]
[327832247,1716528647465,-500.0,0.00033698,6]
[327832248,1716528647475,-500.0,0.00033698,6]
[327832249,1716528647484,-500.0,0.00033698,6]
[327832250,1716528647494,-500.0,0.00033698,6]
[327832251,1716528647504,-500.0,0.00033698,6]
[327832252,1716528647514,-294.22981733,0.00033698,6]
[327832253,1716528647524,-408.78140753,0.00033698,6]
[327832254,1716528647534,-500.0,0.00033698,6]
[327832255,1716528647543,-509.83133403,0.00033698,6]
[327832256,1716528647553,-529.92612921,0.00033698,6]
[327832257,1716528647564,-551.40752616,0.00033698,6]
[327832258,1716528647574,-524.11518492,0.00033698,6]
[327832259,1716528647583,-500.0,0.00033698,6]
[327832260,1716528647593,-500.0,0.00033698,6]
[327832261,1716528647603,-500.0,0.00033698,6]
[327832262,1716528647612,-549.40363406,0.00033698,6]
[327832263,1716528647621,-500.0,0.00033698,6]
[327832264,1716528647632,-500.0,0.00033698,6]
[327832265,1716528647642,-500.0,0.00033698,6]
[327832266,1716528647653,-219.14958601,0.00033698,6]
[327832267,1716528647662,-500.0,0.00033698,6]
[327832268,1716528647672,-500.0,0.00033698,6]
[327832269,1716528647682,-524.56032475,0.00033698,6]
[327832270,1716528647692,-500.0,0.00033698,6]
[327832271,1716528647702,-500.0,0.00033698,6]
[327832272,1716528647711,-500.0,0.00033698,6]
[327832273,1716528647721,-500.0,0.00033698,6]
[327832274,1716528647731,-500.0,0.00033698,6]
[327832275,1716528647741,-570.62765067,0.00033698,6]
[327832276,1716528647752,-530.72497699,0.00033698,6]
[327832277,1716528647761,-506.40281175,0.00033698,6]
[327832278,1716528647771,-500.0,0.00033698,6]
[327832279,1716528647781,-500.0,0.00033698,6]
[327832280,1716528647791,-500.0,0.00033698,6]
[327832281,1716528647801,-500.0,0.00033698,6]
[327832282,1716528647811,-500.0,0.00033698,6]
[327832283,1716528647820,-523.10514181,0.00033698,6]
[327832284,1716528647831,-638.27320175,0.00033698,6]
[327832285,1716528647841,-500.0,0.00033698,6]
[327832286,1716528647851,-500.0,0.00033698,6]
[327832287,1716528647861,-500.0,0.00033698,6]
[327832288,1716528647870,-500.0,0.00033698,6]
[327832289,1716528647883,-500.0,0.00033698,6]
[327832290,1716528647892,-500.0,0.00033698,6]
[327832291,1716528647902,-500.0,0.00033698,6]
[327832292,1716528647912,-500.0,0.00033698,6]
[327832293,1716528647921,-483.96215143,0.00033698,6]
[327832294,1716528647931,-500.0,0.00033698,6]
[327832295,1716528647940,-500.0,0.00033698,6]
[327832296,1716528647950,-500.0,0.00033698,6]
[327832297,1716528647961,-500.0,0.00033698,6]
[327832298,1716528647975,-500.0,0.00033698,6]
[327832299,1716528647985,-538.83356108,0.00033698,6]
[327832300,1716528647994,-500.0,0.00033698,6]
[327832301,1716528648004,-500.0,0.00033698,6]
[327832302,1716528648014,-252.34937964,0.00033698,6]
[327832303,1716528648024,-509.91174889,0.00033698,6]
[327832304,1716528648033,-525.15536638,0.00033698,6]
[327832305,1716528648046,-500.0,0.00033698,6]
[327832306,1716528648055,-500.0,0.00033698,6]
[327832307,1716528648066,-500.0,0.00033698,6]
[327832308,1716528648076,-500.0,0.00033698,6]
[327832309,1716528648086,-279.86,0.00033698,6]
[327832310,1716528648095,-564.13232429,0.00033698,6]
[327832311,1716528648106,-500.0,0.00033698,6]
[327832312,1716528648116,-500.0,0.00033698,6]